bitfinex/quotes_SOLUSD_20250306
["timestamp","ask_amount","ask_price","bid_price","bid_amount"]
[1741267903741,49.58729981,148.75,148.63,6.7281]
[1741267903742,49.58729981,148.68,148.63,6.7281]
[1741267904045,0.14216157,148.74,148.61,73.13879981]
[1741267904046,6.7235,148.73,148.61,73.13879981]
[1741267904221,49.58729981,148.67,148.62,18.79181043]
[1741267904538,49.58729981,148.66,148.64,10.14523695]
[1741267904729,23.5324,148.73,148.64,10.14523695]
[1741267904730,6.7235,148.73,148.64,10.14523695]
[1741267904933,49.58729981,148.68,148.65,18.79181043]
[1741267905150,49.58729981,148.67,148.64,10.14523695]
[1741267905440,49.58729981,148.66,148.62,18.79181043]
[1741267905751,49.58729981,148.64,148.6,6.94264235]
[1741267905919,49.58729981,148.64,148.6,0.21324235]
[1741267906120,49.58729981,148.64,148.6,6.94254235]
[1741267906319,49.58729981,148.64,148.61,18.79181043]
[1741267906639,49.58729981,148.65,148.61,18.79181043]
[1741267906825,9.00216157,148.73,148.61,18.64964886]
[1741267907018,9.00216157,148.73,148.62,0.14216157]
[1741267907019,6.7241,148.72,148.62,0.14216157]
[1741267907213,16.8032,148.79,148.64,0.28432314]
[1741267907425,49.58729981,148.72,148.66,18.79181043]
[1741267907620,49.58729981,148.71,148.66,0.14216157]
[1741267907914,49.58729981,148.7,148.66,0.14216157]
[1741267908314,59.76345855,148.75,148.67,0.14216157]
[1741267908525,49.58729981,148.74,148.68,0.14216157]
[1741267909145,49.58729981,148.72,148.66,0.28432314]
[1741267909354,49.58729981,148.75,148.66,0.14216157]
[1741267909557,49.58729981,148.72,148.66,0.14216157]
[1741267909736,49.58729981,148.71,148.66,18.79181043]
[1741267909931,10.17615874,148.78,148.66,18.79181043]
[1741267909932,49.58729981,148.73,148.68,18.79181043]
[1741267910130,49.58729981,148.76,148.7,18.79181043]
[1741267910340,49.58729981,148.73,148.68,0.14216157]
[1741267910733,49.58729981,148.73,148.68,18.79181043]
[1741267910943,49.58729981,148.74,148.69,0.14216157]
[1741267911125,49.58729981,148.77,148.72,0.14216157]
[1741267911324,26.40041749,148.8,148.72,0.14216157]
[1741267911325,49.58729981,148.76,148.72,0.14216157]
[1741267911858,0.03,148.75,148.74,18.933972]
[1741267912038,0.03,148.75,148.74,25.51491043]
[1741267912221,0.03,148.75,148.74,0.14216157]
[1741267912417,0.03,148.75,148.73,0.14216157]
[1741267912636,0.03,148.75,148.73,18.79181043]
[1741267913030,0.03,148.75,148.73,0.14216157]
[1741267913317,49.58729981,148.74,148.62,6.7285]
[1741267913518,49.58729981,148.67,148.62,6.7285]
[1741267913818,0.14216157,148.74,148.61,6.7619]
[1741267913819,49.58729981,148.65,148.61,6.7619]
[1741267914025,23.5324,148.73,148.61,6.7619]
[1741267914227,6.7235,148.73,148.62,49.58729981]
[1741267914549,49.58729981,148.66,148.61,6.7619]
[1741267914756,49.58729981,148.67,148.63,0.14216157]
[1741267915362,49.58729981,148.69,148.63,49.72946138]
[1741267915548,49.58729981,148.69,148.65,0.14216157]
[1741267916128,49.58729981,148.66,148.62,18.64964886]
[1741267916323,49.58729981,148.65,148.61,0.033]
[1741267916636,6.7258,148.69,148.61,0.033]
[1741267916637,49.58729981,148.66,148.61,6.762]
[1741267916825,49.58729981,148.66,148.62,0.14216157]
[1741267917021,49.58729981,148.63,148.61,0.033]
[1741267917227,49.58729981,148.62,148.61,0.033]
[1741267917452,49.58729981,148.63,148.61,0.033]
[1741267917626,49.58729981,148.68,148.61,0.033]
[1741267917826,49.58729981,148.66,148.62,0.14216157]
[1741267918338,49.58729981,148.66,148.64,0.14216157]
[1741267918854,6.7245,148.71,148.64,0.14216157]
[1741267919062,49.58729981,148.66,148.64,0.14216157]
[1741267919359,49.58729981,148.65,148.61,0.033]
[1741267919545,49.58729981,148.62,148.61,0.033]
[1741267920731,6.7264,148.67,148.61,0.033]
[1741267920933,49.58729981,148.62,148.61,0.033]
[1741267921755,99.17459962,148.62,148.61,0.033]
[1741267922150,6.7267,148.66,148.61,0.033]
[1741267922368,49.58729981,148.63,148.61,0.033]
[1741267923137,8.76,148.74,148.61,0.033]
[1741267923460,49.58729981,148.66,148.61,0.033]
[1741267923661,49.58729981,148.67,148.61,0.033]
[1741267923865,0.03,148.67,148.62,0.28432314]
[1741267924032,0.03,148.67,148.63,6.7281]
[1741267924241,0.03,148.67,148.64,18.79181043]
[1741267924426,49.58729981,148.65,148.64,0.14216157]
[1741267924645,49.58729981,148.65,148.61,0.033]
[1741267924848,49.58729981,148.62,148.61,0.033]
[1741267925150,49.58729981,148.63,148.61,0.033]
[1741267925537,49.58729981,148.62,148.61,0.033]
[1741267929672,0.03,148.67,148.61,0.033]
[1741267929841,0.03,148.67,148.64,18.79181043]
[1741267930029,0.03,148.67,148.64,0.14216157]
[1741267930348,49.58729981,148.65,148.63,0.14216157]
[1741267930540,0.03,148.67,148.63,0.14216157]
[1741267930745,49.58729981,148.64,148.63,0.14216157]
[1741267930945,49.58729981,148.64,148.61,0.033]
[1741267931148,49.58729981,148.62,148.61,0.033]
[1741267931831,105.41606119,148.62,148.61,0.033]
[1741267932151,0.14216157,148.61,148.56,0.033]
[1741267932353,0.14216157,148.56,148.49,10.40187104]
[1741267932533,49.58729981,148.5,148.49,10.40187104]
[1741267932938,49.58729981,148.5,148.49,10.54403261]
[1741267933457,49.58729981,148.5,148.49,10.40187104]
[1741267933646,49.58729981,148.5,148.46,0.033]
[1741267933844,49.58729981,148.54,148.46,0.033]
[1741267934038,49.58729981,148.48,148.46,0.033]
[1741267934263,6.7337,148.51,148.46,0.033]
[1741267934264,49.58729981,148.47,148.46,0.033]
[1741267934771,6.7337,148.51,148.46,0.033]
[1741267934772,49.58729981,148.48,148.46,0.033]
[1741267935079,49.58729981,148.5,148.46,0.033]
[1741267935273,49.58729981,148.48,148.46,0.033]
[1741267935563,49.58729981,148.47,148.46,0.033]
[1741267935739,49.58729981,148.48,148.46,0.033]
[1741267935941,49.58729981,148.47,148.46,0.033]
[1741267936356,56.31949981,148.54,148.46,0.033]
[1741267936560,49.58729981,148.51,148.46,0.033]
[1741267937460,8.54,148.58,148.46,0.033]
[1741267937461,49.58729981,148.48,148.46,0.033]
[1741267937764,49.58729981,148.47,148.46,0.033]
[1741267938347,99.17459962,148.47,148.46,0.033]
[1741267938552,105.90989962,148.47,148.46,0.033]
[1741267938961,49.58729981,148.47,148.46,0.033]
[1741267940049,12.7471,148.51,148.46,0.033]
[1741267940254,49.58729981,148.47,148.46,0.033]
[1741267940857,49.58729981,148.5,148.46,0.17516157]
[1741267941056,49.58729981,148.51,148.46,18.82481043]
[1741267941264,56.31949981,148.54,148.46,0.17516157]
[1741267941465,49.58729981,148.54,148.46,0.17516157]
[1741267941786,6.7312,148.56,148.46,18.82481043]
[1741267941948,23.1501,148.57,148.49,0.14216157]
[1741267941949,6.3223,148.57,148.49,0.14216157]
[1741267942278,49.58729981,148.57,148.53,18.79181043]
[1741267942613,49.58729981,148.58,148.53,18.79181043]
[1741267942959,6.7267,148.66,148.55,68.37911024]
[1741267943166,49.58729981,148.6,148.55,18.79181043]
[1741267943354,49.58729981,148.58,148.55,0.14216157]
[1741267943549,49.58729981,148.57,148.53,0.14216157]
[1741267943749,49.58729981,148.57,148.53,18.79181043]
[1741267943968,49.58729981,148.6,148.53,68.37911024]
[1741267944196,49.58729981,148.6,148.55,18.79181043]
[1741267944502,49.58729981,148.6,148.57,0.14216157]
[1741267944801,16.8168,148.66,148.57,0.14216157]
[1741267944802,49.58729981,148.58,148.57,0.14216157]
[1741267944967,49.58729981,148.58,148.54,0.14216157]
[1741267945171,49.58729981,148.57,148.54,0.14216157]
[1741267945374,49.58729981,148.56,148.54,0.14216157]
[1741267945577,49.58729981,148.55,148.5,0.14216157]
[1741267945876,49.58729981,148.52,148.47,6.7353]
[1741267946071,49.58729981,148.5,148.46,0.033]
[1741267946271,49.58729981,148.49,148.46,0.033]
[1741267946471,49.58729981,148.48,148.46,0.033]
[1741267946681,49.58729981,148.49,148.46,0.033]
[1741267946885,49.58729981,148.47,148.46,0.033]
[1741267948081,99.17459962,148.47,148.46,0.033]
[1741267948483,49.58729981,148.47,148.46,0.033]
[1741267948875,99.17459962,148.47,148.46,0.033]
[1741267949281,49.58729981,148.47,148.46,0.033]
[1741267951474,99.17459962,148.47,148.46,0.033]
[1741267951673,18.79181043,148.46,148.41,0.033]
[1741267951878,99.17459962,148.42,148.41,0.033]
[1741267952073,49.58729981,148.42,148.41,0.033]
[1741267952869,56.32489981,148.42,148.41,0.033]
[1741267953382,105.91219962,148.42,148.41,0.033]
[1741267954181,56.32489981,148.42,148.41,0.033]
[1741267954386,105.91219962,148.42,148.41,0.033]
[1741267955070,122.89836119,148.42,148.31,0.033]
[1741267955271,49.58729981,148.32,148.31,0.033]
[1741267956790,49.58729981,148.33,148.31,0.033]
[1741267957193,49.58729981,148.34,148.31,0.033]
[1741267957394,49.58729981,148.35,148.31,0.033]
[1741267957609,49.58729981,148.36,148.31,0.17516157]
[1741267957790,49.58729981,148.35,148.31,0.17516157]
[1741267957983,49.58729981,148.34,148.31,0.17516157]
[1741267959783,6.4027,148.39,148.31,0.17516157]
[1741267959989,49.58729981,148.35,148.31,0.17516157]
[1741267960296,49.58729981,148.35,148.31,18.82481043]
[1741267960504,49.58729981,148.37,148.32,23.88182314]
[1741267960804,49.58729981,148.38,148.34,0.28432314]
[1741267961194,12.8477,148.44,148.34,0.14216157]
[1741267961195,49.58729981,148.37,148.34,0.14216157]
[1741267961500,49.58729981,148.37,148.34,0.28432314]
[1741267962102,49.58729981,148.38,148.34,0.28432314]
[1741267962297,49.58729981,148.39,148.34,0.28432314]
[1741267962497,49.58729981,148.4,148.36,0.14216157]
[1741267963383,49.58729981,148.4,148.31,0.033]
[1741267963384,49.58729981,148.37,148.31,0.033]
[1741267963586,49.58729981,148.33,148.32,6.7418]
[1741267963791,49.58729981,148.33,148.31,0.033]
[1741267963984,49.58729981,148.32,148.31,0.033]
[1741267965124,56.32939981,148.32,148.31,0.033]
[1741267966102,49.58729981,148.32,148.31,0.033]
[1741267966806,73.32696138,148.32,148.28,0.033]
[1741267967008,49.58729981,148.29,148.28,0.033]
[1741267967413,99.17459962,148.29,148.28,0.033]
[1741267967794,49.58729981,148.29,148.28,0.033]
[1741267968602,56.33079981,148.29,148.28,0.033]
[1741267968916,49.58729981,148.29,148.28,0.033]
[1741267969097,56.33079981,148.29,148.28,0.033]
[1741267969490,56.47296138,148.29,148.28,0.033]
[1741267969693,106.06026119,148.29,148.28,0.033]
[1741267970015,56.33079981,148.29,148.28,0.033]
[1741267970321,49.58729981,148.29,148.28,0.033]
[1741267971511,6.1212,148.34,148.28,0.033]
[1741267971718,49.58729981,148.31,148.28,0.033]
[1741267972016,49.58729981,148.33,148.29,0.14216157]
[1741267972196,49.58729981,148.34,148.29,0.14216157]
[1741267972508,49.58729981,148.34,148.3,6.743]
[1741267972711,49.58729981,148.36,148.31,18.79181043]
[1741267972915,49.58729981,148.38,148.33,18.79181043]
[1741267973801,49.58729981,148.39,148.35,0.14216157]
[1741267974000,49.58729981,148.37,148.35,0.14216157]
[1741267974413,49.58729981,148.37,148.32,0.28432314]
[1741267974598,49.58729981,148.4,148.32,0.14216157]
[1741267974599,49.58729981,148.35,148.32,0.14216157]
[1741267975334,49.58729981,148.33,148.32,0.14216157]
[1741267975816,49.58729981,148.34,148.32,0.14216157]
[1741267976017,49.58729981,148.35,148.32,0.14216157]
[1741267976205,49.58729981,148.34,148.32,0.14216157]
[1741267976408,49.58729981,148.33,148.32,0.14216157]
[1741267976715,49.58729981,148.34,148.32,0.14216157]
[1741267977193,49.58729981,148.33,148.32,0.14216157]
[1741267977650,49.58729981,148.34,148.32,0.14216157]
[1741267977826,49.61729981,148.37,148.34,0.14216157]
[1741267978001,0.03,148.37,148.34,0.14216157]
[1741267978734,0.03,148.37,148.36,0.14216157]
[1741267978896,0.03,148.37,148.36,18.79181043]
[1741267980045,49.58729981,148.43,148.37,0.14216157]
[1741267980335,8.6535,148.5,148.4,0.14216157]
[1741267980336,0.03,148.47,148.4,0.14216157]
[1741267980509,49.58729981,148.44,148.4,0.14216157]
[1741267980711,49.58729981,148.44,148.42,0.14216157]
[1741267981010,0.03,148.47,148.42,18.79181043]
[1741267981422,0.03,148.47,148.46,0.14216157]
[1741267981805,49.61729981,148.47,148.46,0.14216157]
[1741267982127,56.35269981,148.47,148.42,0.14216157]
[1741267982417,49.58729981,148.43,148.35,6.7408]
[1741267982617,49.58729981,148.39,148.33,52.09529981]
[1741267982799,0.14216157,148.46,148.34,6.7412]
[1741267982800,49.58729981,148.38,148.34,6.7412]
[1741267983003,49.58729981,148.43,148.37,49.58729981]
[1741267983199,49.61729981,148.47,148.34,23.5943]
[1741267983200,49.58729981,148.41,148.38,0.14216157]
[1741267983411,0.14216157,148.46,148.33,2.508]
[1741267983611,0.14216157,148.46,148.34,18.933972]
[1741267983807,0.14216157,148.46,148.34,18.64964886]
[1741267984010,49.58729981,148.41,148.35,0.28432314]
[1741267984213,49.58729981,148.41,148.37,0.14216157]
[1741267984414,49.58729981,148.42,148.37,0.14216157]
[1741267984626,49.58729981,148.43,148.39,0.14216157]
[1741267984926,0.03,148.47,148.43,18.79181043]
[1741267986043,49.58729981,148.44,148.43,0.14216157]
[1741267986208,49.58729981,148.44,148.41,0.14216157]
[1741267986530,0.03,148.47,148.44,0.14216157]
[1741267986827,0.03,148.47,148.46,0.14216157]
[1741267987026,49.61729981,148.47,148.46,0.14216157]
[1741267987435,0.03,148.47,148.46,0.14216157]
[1741267987940,49.61729981,148.47,148.46,0.14216157]
[1741267988725,0.03,148.47,148.46,0.14216157]
[1741267989346,0.03,148.47,148.46,75.25707181]
[1741267990045,0.03,148.52,148.49,18.933972]
[1741267990408,49.58729981,148.51,148.47,0.14216157]
[1741267990613,0.03,148.52,148.49,18.933972]
[1741267990930,0.03,148.52,148.51,18.79181043]
[1741267991129,0.03,148.52,148.51,0.14216157]
[1741267991316,0.03,148.52,148.45,7.02052314]
[1741267991651,0.03,148.52,148.47,0.14216157]
[1741267991816,0.03,148.52,148.47,0.28432314]
[1741267992317,0.03,148.52,148.49,68.52127181]
[1741267992519,49.58729981,148.51,148.45,23.5768]
[1741267992707,49.58729981,148.5,148.46,0.14216157]
[1741267992907,49.58729981,148.5,148.46,6.7354]
[1741267993108,49.58729981,148.5,148.44,52.00909981]
[1741267993335,0.03,148.52,148.41,16.8443]
[1741267993336,49.58729981,148.47,148.41,16.8443]
[1741267993512,13.0859,148.52,148.41,6.738]
[1741267993713,49.58729981,148.47,148.42,18.933972]
[1741267994145,49.58729981,148.49,148.43,49.58729981]
[1741267994345,0.03,148.52,148.46,68.52127181]
[1741267994636,49.61729981,148.52,148.46,68.52127181]
[1741267995164,0.03,148.52,148.5,0.14216157]
[1741267995318,49.61729981,148.52,148.47,6.7353]
[1741267995521,49.61729981,148.52,148.48,0.14216157]
[1741267995745,49.61729981,148.52,148.48,18.79181043]
[1741267996144,49.58729981,148.5,148.42,6.7376]
[1741267996470,0.03,148.52,148.49,49.58729981]
[1741267996671,0.03,148.52,148.5,0.14216157]
[1741267997260,0.03,148.52,148.47,49.72946138]
[1741267997261,49.58729981,148.51,148.48,0.14216157]
[1741267997555,49.58729981,148.5,148.48,0.14216157]
[1741267998461,49.58729981,148.5,148.45,25.52801043]
[1741267998658,49.58729981,148.49,148.42,49.58729981]
[1741267998860,49.58729981,148.47,148.43,6.7371]
[1741267999024,49.58729981,148.47,148.44,25.52831043]
[1741267999225,49.58729981,148.51,148.46,18.79181043]
[1741267999653,49.58729981,148.5,148.46,18.79181043]
[1741267999829,49.58729981,148.48,148.45,0.14216157]
[1741268000034,49.58729981,148.46,148.43,6.7371]
[1741268000233,49.58729981,148.45,148.41,6.738]
[1741268000446,49.58729981,148.45,148.42,18.79181043]
[1741268000647,49.58729981,148.44,148.4,0.21324235]
[1741268000829,49.58729981,148.44,148.4,6.95154235]
[1741268001029,49.58729981,148.45,148.41,0.14216157]
[1741268001224,49.58729981,148.44,148.4,6.95154235]
[1741268001431,49.58729981,148.43,148.4,6.95154235]
[1741268001644,49.58729981,148.42,148.4,0.21324235]
[1741268001846,49.58729981,148.41,148.4,0.21324235]
[1741268002063,49.58729981,148.41,148.38,0.033]
[1741268002363,49.58729981,148.42,148.39,0.14216157]
[1741268002569,49.58729981,148.43,148.39,0.14216157]
[1741268003132,49.58729981,148.44,148.41,0.14216157]
[1741268003328,15.3675,148.52,148.43,0.14216157]
[1741268003629,12.9662,148.52,148.43,0.14216157]
[1741268003852,49.58729981,148.44,148.4,0.14216157]
[1741268004059,49.58729981,148.43,148.4,0.14216157]
[1741268004869,49.58729981,148.46,148.4,18.79181043]
[1741268005074,12.9662,148.52,148.44,6.7367]
[1741268005075,49.58729981,148.49,148.44,6.7367]
[1741268005254,49.58729981,148.48,148.45,0.14216157]
[1741268005639,49.58729981,148.49,148.45,0.14216157]
[1741268005841,49.58729981,148.51,148.45,18.79181043]
[1741268006041,49.58729981,148.51,148.45,68.37911024]
[1741268006236,49.58729981,148.51,148.45,18.79181043]
[1741268006461,49.58729981,148.49,148.45,18.79181043]
[1741268006772,30.55686133,148.48,148.45,0.14216157]
[1741268007468,30.55686133,148.46,148.44,0.14216157]
[1741268007734,30.55686133,148.45,148.44,0.14216157]
[1741268007842,30.55686133,148.45,148.42,6.7376]
[1741268008047,30.55686133,148.43,148.39,6.7389]
[1741268008467,30.55686133,148.43,148.4,18.79181043]
[1741268008651,49.69418165,148.43,148.39,6.7389]
[1741268009069,49.69418165,148.43,148.4,0.14216157]
[1741268009279,49.69418165,148.42,148.4,0.14216157]
[1741268009460,49.69418165,148.41,148.38,6.7723]
[1741268009639,49.69418165,148.39,148.38,0.033]
[1741268011355,56.43308165,148.39,148.38,0.033]
[1741268011562,49.69418165,148.39,148.38,0.033]
[1741268012376,56.43308165,148.39,148.38,0.033]
[1741268012561,49.69418165,148.39,148.38,0.033]
[1741268013283,49.69418165,148.4,148.38,0.033]
[1741268013667,49.69418165,148.41,148.38,0.033]
[1741268013892,49.69418165,148.4,148.38,0.033]
[1741268014278,6.7364,148.45,148.38,0.033]
[1741268014279,49.69418165,148.39,148.38,0.033]
[1741268014489,49.69418165,148.4,148.38,0.033]
[1741268014660,2.5177,148.46,148.38,0.033]
[1741268014990,49.69418165,148.43,148.38,18.82481043]
[1741268015205,49.69418165,148.44,148.4,0.14216157]
[1741268015383,49.69418165,148.45,148.42,0.14216157]
[1741268015567,49.69418165,148.44,148.42,0.14216157]
[1741268016385,49.69418165,148.44,148.41,0.14216157]
[1741268016684,49.69418165,148.42,148.4,6.7384]
[1741268016881,49.69418165,148.44,148.41,0.14216157]
[1741268017075,49.69418165,148.45,148.41,0.14216157]
[1741268017277,2.6697,148.52,148.41,0.14216157]
[1741268017463,49.69418165,148.48,148.43,0.14216157]
[1741268017660,49.69418165,148.45,148.43,0.14216157]
[1741268017888,49.69418165,148.44,148.41,0.14216157]
[1741268018185,49.69418165,148.43,148.41,0.14216157]
[1741268018694,49.69418165,148.43,148.39,6.7389]
[1741268018873,49.69418165,148.47,148.39,6.7389]
[1741268019078,49.69418165,148.47,148.4,0.14216157]
[1741268019277,49.69418165,148.44,148.4,0.14216157]
[1741268019680,49.69418165,148.44,148.41,0.14216157]
[1741268019974,49.69418165,148.45,148.41,0.14216157]
[1741268020185,49.69418165,148.44,148.41,0.14216157]
[1741268020684,49.69418165,148.44,148.4,0.14216157]
[1741268020879,49.69418165,148.41,148.38,0.033]
[1741268021084,49.69418165,148.4,148.38,0.033]
[1741268021284,49.69418165,148.39,148.38,0.033]
[1741268022266,6.7362,148.45,148.38,0.033]
[1741268022471,0.28432314,148.44,148.38,0.033]
[1741268022686,49.69418165,148.4,148.38,0.033]
[1741268023071,49.69418165,148.39,148.38,0.033]
[1741268023389,49.69418165,148.4,148.38,0.033]
[1741268023708,49.69418165,148.46,148.39,49.83634322]
[1741268023903,49.69418165,148.46,148.41,0.14216157]
[1741268024083,49.69418165,148.44,148.41,0.14216157]
[1741268024289,49.69418165,148.43,148.41,0.14216157]
[1741268024587,49.69418165,148.43,148.4,0.14216157]
[1741268024788,49.69418165,148.45,148.4,0.14216157]
[1741268024972,49.69418165,148.46,148.4,49.83634322]
[1741268025168,0.03,148.47,148.42,0.14216157]
[1741268025491,0.03,148.47,148.46,49.69418165]
[1741268025692,0.03,148.47,148.46,68.48599208]
[1741268025888,0.03,148.47,148.46,6.87796157]
[1741268026278,0.03,148.52,148.47,0.14216157]
[1741268026593,0.03,148.52,148.51,0.14216157]
[1741268027170,0.03,148.52,148.48,0.14216157]
[1741268027377,0.03,148.52,148.5,0.42648471]
[1741268027702,0.03,148.52,148.51,68.77031522]
[1741268027900,0.03,148.52,148.51,75.50381522]
[1741268028086,0.03,148.52,148.51,75.21949208]
[1741268028486,0.03,148.52,148.51,49.83634322]
[1741268028671,0.03,148.52,148.51,0.14216157]
[1741268029479,49.72418165,148.52,148.51,0.14216157]
[1741268030219,56.45718165,148.52,148.51,0.14216157]
[1741268030516,56.45718165,148.52,148.43,56.43118165]
[1741268030679,49.69418165,148.5,148.44,68.48599208]
[1741268030878,49.69418165,148.49,148.44,18.79181043]
[1741268031183,49.72418165,148.52,148.46,49.83634322]
[1741268031594,49.69418165,148.49,148.44,312.0]
[1741268031901,49.69418165,148.48,148.45,0.14216157]
[1741268032083,49.69418165,148.48,148.42,68.34383051]
[1741268032287,49.69418165,148.46,148.4,56.645524]
[1741268032489,49.69418165,148.46,148.41,18.79181043]
[1741268033108,49.69418165,148.46,148.41,18.64964886]
[1741268033302,49.69418165,148.45,148.4,0.21324235]
[1741268033680,49.69418165,148.46,148.41,0.14216157]
[1741268033882,6.7342,148.5,148.43,0.14216157]
[1741268034097,49.69418165,148.48,148.43,18.79181043]
[1741268034397,49.69418165,148.5,148.45,0.14216157]
[1741268034804,49.69418165,148.51,148.45,49.83634322]
[1741268034978,49.69418165,148.51,148.45,361.83634322]
[1741268036100,56.45738165,148.52,148.45,368.57214322]
[1741268036291,49.69418165,148.51,148.45,368.57214322]
[1741268036796,0.03,148.52,148.47,0.14216157]
[1741268037099,0.03,148.52,148.49,68.48599208]
[1741268037396,0.03,148.52,148.51,68.48599208]
[1741268037598,0.03,148.52,148.51,68.77031522]
[1741268038181,49.69418165,148.6,148.53,0.14216157]
[1741268038380,49.69418165,148.61,148.56,0.14216157]
[1741268038586,6.7585,148.62,148.56,0.14216157]
[1741268038795,49.69418165,148.61,148.56,0.14216157]
[1741268039183,49.69418165,148.6,148.56,0.14216157]
[1741268039498,49.69418165,148.59,148.56,0.14216157]
[1741268039697,49.69418165,148.59,148.57,0.14216157]
[1741268039890,49.69418165,148.6,148.57,0.14216157]
[1741268040082,49.69418165,148.61,148.57,0.14216157]
[1741268040290,0.03,148.62,148.57,6.87256157]
[1741268040505,0.03,148.62,148.57,56.56674322]
[1741268040802,0.03,148.62,148.6,49.83634322]
[1741268041001,0.03,148.62,148.61,68.48599208]
[1741268041397,0.03,148.62,148.61,68.77031522]
[1741268042195,0.03,148.67,148.64,0.14216157]
[1741268042416,0.03,148.67,148.66,68.48599208]
[1741268042594,0.03,148.67,148.66,18.79181043]
[1741268042916,0.03,148.67,148.66,0.14216157]
[1741268043290,0.03,148.67,148.66,312.14216157]
[1741268043586,49.72418165,148.67,148.66,312.14216157]
[1741268043786,0.03,148.67,148.66,312.14216157]
[1741268044000,49.72418165,148.67,148.66,312.14216157]
[1741268044386,0.03,148.67,148.66,312.14216157]
[1741268044804,0.03,148.67,148.66,318.86886157]
[1741268045005,0.03,148.67,148.66,25.51851043]
[1741268045303,0.03,148.67,148.66,18.79181043]
[1741268045689,0.03,148.67,148.66,75.21269208]
[1741268045890,0.03,148.67,148.66,0.14216157]
[1741268046415,0.03,148.67,148.66,75.49701522]
[1741268046710,0.03,148.75,148.67,19.07613357]
[1741268047021,0.03,148.75,148.71,18.79181043]
[1741268047308,0.03,148.75,148.73,0.14216157]
[1741268047887,0.03,148.75,148.72,68.48599208]
[1741268048108,0.03,148.75,148.74,330.79181043]
[1741268048496,0.03,148.75,148.74,337.51491043]
[1741268048812,0.03,148.75,148.74,387.49341522]
[1741268049826,49.72418165,148.82,148.75,19.07613357]
[1741268050019,0.03,148.82,148.79,0.14216157]
[1741268050213,0.03,148.82,148.81,0.14216157]
[1741268050905,0.03,148.82,148.8,18.79181043]
[1741268051102,0.03,148.82,148.8,49.83634322]
[1741268051288,0.03,148.82,148.81,68.48599208]
[1741268051627,49.69418165,148.94,148.84,0.14216157]
[1741268051797,49.69418165,148.94,148.88,0.14216157]
[1741268051991,49.69418165,148.92,148.88,0.14216157]
[1741268052311,49.69418165,148.91,148.85,49.83634322]
[1741268052522,56.40968165,148.91,148.85,49.83634322]
[1741268052814,49.69418165,148.89,148.84,0.14216157]
[1741268053122,6.7155,148.91,148.81,0.14216157]
[1741268053123,49.69418165,148.86,148.81,0.14216157]
[1741268053413,49.69418165,148.86,148.81,18.79181043]
[1741268053609,49.69418165,148.85,148.8,0.14216157]
[1741268053811,49.69418165,148.83,148.77,49.69418165]
[1741268054013,0.28432314,148.88,148.76,49.907424]
[1741268054196,49.69418165,148.83,148.77,49.69418165]
[1741268054394,6.7195,148.82,148.76,0.21324235]
[1741268054630,49.69418165,148.78,148.71,2.4639]
[1741268054930,49.69418165,148.77,148.71,2.4639]
[1741268055089,73.21248165,148.82,148.69,16.71260471]
[1741268055090,49.69418165,148.76,148.69,10.45800471]
[1741268055290,49.69418165,148.76,148.71,18.79181043]
[1741268055515,49.69418165,148.74,148.69,10.45800471]
[1741268055823,49.69418165,148.72,148.69,10.45800471]
[1741268055989,49.69418165,148.72,148.66,18.79181043]
[1741268056196,49.69418165,148.72,148.66,68.48599208]
[1741268056392,6.7249,148.7,148.65,361.907424]
[1741268056612,6.7245,148.71,148.67,0.14216157]
[1741268056811,56.41868165,148.71,148.67,0.14216157]
[1741268057006,49.69418165,148.69,148.65,0.21324235]
[1741268057408,49.69418165,148.69,148.66,0.14216157]
[1741268057602,49.69418165,148.7,148.66,0.14216157]
[1741268058504,49.69418165,148.7,148.65,0.14216157]
[1741268058704,49.69418165,148.68,148.63,120.2]
[1741268058917,49.69418165,148.66,148.63,120.2]
[1741268059222,49.69418165,148.69,148.63,169.89418165]
[1741268059416,49.69418165,148.69,148.64,0.14216157]
[1741268059625,49.69418165,148.68,148.64,0.14216157]
[1741268059797,49.69418165,148.69,148.64,0.14216157]
[1741268059999,49.69418165,148.7,148.64,0.14216157]
[1741268060211,49.69418165,148.67,148.64,0.14216157]
[1741268060412,19.00547485,148.71,148.63,120.2]
[1741268060413,49.69418165,148.66,148.63,120.2]
[1741268060623,49.69418165,148.66,148.61,0.033]
[1741268060808,49.69418165,148.67,148.61,18.82481043]